bitfinex-derivatives/quotes_BTCF0:USTF0_20251210
["timestamp","ask_amount","ask_price","bid_price","bid_amount"]
[1765335412112,0.02391857,92405.0,92404.0,0.0683711]
[1765335412312,0.05329857,92405.0,92404.0,0.0683711]
[1765335413022,0.08186857,92405.0,92404.0,0.07914997]
[1765335413328,0.00516235,92405.0,92404.0,0.09368997]
[1765335413517,0.00108208,92415.0,92414.0,0.06667]
[1765335413722,0.05446726,92415.0,92414.0,0.06667]
[1765335413923,0.02482726,92415.0,92414.0,0.06667]
[1765335414115,0.00108208,92415.0,92414.0,0.06667]
[1765335414518,0.00108208,92415.0,92414.0,0.06767]
[1765335414519,0.00208208,92415.0,92414.0,0.06767]
[1765335415122,0.00016235,92424.0,92414.0,0.06767]
[1765335415123,0.02980235,92424.0,92423.0,0.0666689]
[1765335415420,0.00016235,92424.0,92423.0,0.0666689]
[1765335415625,0.0860874,92436.0,92435.0,0.05585]
[1765335415922,0.09898886,92436.0,92435.0,0.05585]
[1765335416622,0.05824,92436.0,92435.0,0.05585]
[1765335417010,0.01811179,92440.0,92426.0,0.05177413]
[1765335417011,0.07635179,92440.0,92439.0,0.05585]
[1765335417226,0.05932179,92440.0,92439.0,0.05585]
[1765335418119,0.06032179,92440.0,92439.0,0.05685]
[1765335419020,0.07735179,92440.0,92439.0,0.05685]
[1765335419626,0.07735179,92440.0,92439.0,0.02801]
[1765335419825,0.07735179,92440.0,92439.0,0.038827]
[1765335420014,0.07735179,92440.0,92439.0,0.067667]
[1765335420927,0.06032179,92440.0,92439.0,0.067667]
[1765335421328,0.00208179,92440.0,92439.0,0.067667]
[1765335421927,0.06032179,92440.0,92439.0,0.067667]
[1765335422128,0.07735179,92440.0,92439.0,0.067667]
[1765335422329,0.07735179,92440.0,92439.0,0.05685]
[1765335423424,0.08816869,92440.0,92439.0,0.05685]
[1765335425334,0.08816869,92440.0,92439.0,0.067667]
[1765335425834,0.07735179,92440.0,92439.0,0.067667]
[1765335427435,0.07735179,92440.0,92439.0,0.001]
[1765335427630,0.07735179,92440.0,92439.0,0.02801]
[1765335427828,0.10082992,92440.0,92439.0,0.001]
[1765335431233,0.05824,92429.0,92428.0,0.0666683]
[1765335431425,0.09253633,92429.0,92428.0,0.05585]
[1765335432136,0.09253633,92429.0,92428.0,0.0666683]
[1765335432531,0.09253633,92429.0,92428.0,0.0696683]
[1765335432835,0.09353633,92429.0,92428.0,0.0716683]
[1765335433936,0.09353633,92429.0,92428.0,0.06085]
[1765335434829,0.09353633,92429.0,92428.0,0.0716683]
[1765335434830,0.08271813,92429.0,92428.0,0.0716683]
[1765335435033,0.02447813,92429.0,92428.0,0.0716683]
[1765335435935,0.001,92429.0,92428.0,0.0716683]
[1765335436337,0.02453344,92429.0,92428.0,0.0716683]
[1765335436726,0.001,92429.0,92428.0,0.0716683]
[1765335437738,0.05794,92429.0,92428.0,0.0716683]
[1765335437934,0.08149034,92429.0,92428.0,0.06085]
[1765335439021,0.08149034,92429.0,92428.0,0.03201]
[1765335439426,0.08149034,92429.0,92428.0,0.06179]
[1765335451047,0.08149034,92429.0,92428.0,0.03201]
[1765335451545,0.08149034,92429.0,92428.0,0.0721983]
[1765335454741,0.08149034,92429.0,92428.0,0.06138]
[1765335458353,0.08149034,92429.0,92428.0,0.005]
[1765335461457,0.08149034,92429.0,92428.0,0.03289]
[1765335461662,0.08149034,92429.0,92428.0,0.06226]
[1765335465869,0.08149034,92429.0,92428.0,0.03289]
[1765335466068,0.08149034,92429.0,92428.0,0.005]
[1765335466270,0.13997115,92429.0,92428.0,0.005]
[1765335466667,0.08149034,92429.0,92428.0,0.005]
[1765335466866,0.05909,92427.0,92426.0,0.00016235]
[1765335467074,0.08264034,92427.0,92426.0,0.00016235]
[1765335467670,0.0699103,92411.0,92410.0,0.05726]
[1765335467870,0.09346064,92411.0,92410.0,0.12726]
[1765335468862,0.09446064,92411.0,92410.0,0.13326]
[1765335469261,0.0709103,92411.0,92410.0,0.13326]
[1765335469461,0.06009,92411.0,92410.0,0.13326]
[1765335469766,0.08377231,92411.0,92410.0,0.13326]
[1765335469967,0.08477231,92411.0,92410.0,0.13926]
[1765335471276,0.06109,92411.0,92410.0,0.13926]
[1765335477377,0.0315,92411.0,92410.0,0.13926]
[1765335478181,0.0608,92411.0,92410.0,0.13926]
[1765335480475,0.002,92411.0,92410.0,0.13926]
[1765335482072,0.06085,92411.0,92410.0,0.13926]
[1765335482288,0.08451017,92411.0,92410.0,0.03989]
[1765335482986,0.08451017,92411.0,92410.0,0.06988]
[1765335504802,0.02566017,92411.0,92410.0,0.06988]
[1765335505001,0.02566017,92411.0,92410.0,0.15988]
[1765335505304,0.02566017,92411.0,92410.0,0.06988]
[1765335505497,0.002,92411.0,92410.0,0.06988]
[1765335506896,0.00016235,92420.0,92419.0,0.0679294]
[1765335507110,0.02369639,92420.0,92419.0,0.0679294]
[1765335507402,0.00016235,92420.0,92419.0,0.0679294]
[1765335508000,0.00016235,92420.0,92419.0,0.0719294]
[1765335508191,0.00116235,92420.0,92419.0,0.0719294]
[1765335508899,0.00216235,92420.0,92419.0,0.0749294]
[1765335510301,0.03000235,92420.0,92419.0,0.0749294]
[1765335510897,0.05763235,92420.0,92419.0,0.0749294]
[1765335514101,0.05763235,92420.0,92419.0,0.1649294]
[1765335514102,0.00216235,92420.0,92419.0,0.1649294]
[1765335514707,0.0108175,92435.0,92419.0,0.1649294]
[1765335514708,0.05547,92435.0,92434.0,0.0679276]
[1765335514911,0.05134764,92435.0,92434.0,0.0679276]
[1765335515204,0.05655179,92440.0,92439.0,0.067927]
[1765335515409,0.08005038,92440.0,92439.0,0.067927]
[1765335515606,0.08005038,92440.0,92439.0,0.07850602]
[1765335515811,0.09704038,92440.0,92439.0,0.07850602]
[1765335516507,0.09704038,92440.0,92439.0,0.067927]
[1765335517502,0.09804038,92440.0,92439.0,0.068927]
[1765335517702,0.09904038,92440.0,92439.0,0.068927]
[1765335519305,0.09904038,92440.0,92439.0,0.001]
[1765335519506,0.09904038,92440.0,92439.0,0.03038]
[1765335519806,0.09904038,92440.0,92439.0,0.05811]
[1765335522314,0.09904038,92440.0,92439.0,0.001]
[1765335523414,0.09904038,92440.0,92439.0,0.03038]
[1765335523606,0.09904038,92440.0,92439.0,0.05811]
[1765335525518,0.09904038,92440.0,92439.0,0.03038]
[1765335526019,0.09904038,92440.0,92439.0,0.05811]
[1765335527914,0.09904038,92440.0,92439.0,0.001]
[1765335528622,0.09904038,92440.0,92439.0,0.03038]
[1765335529412,0.09904038,92440.0,92439.0,0.05811]
[1765335530026,0.02658038,92440.0,92439.0,0.25811]
[1765335531221,0.00308179,92440.0,92439.0,0.25811]
[1765335531721,0.00308179,92440.0,92439.0,0.05811]
[1765335531920,0.05855179,92440.0,92439.0,0.05811]
[1765335532107,0.03092179,92440.0,92439.0,0.05811]
[1765335534522,0.05855179,92440.0,92439.0,0.05811]
[1765335535316,0.00308179,92440.0,92439.0,0.05811]
[1765335535816,0.03032179,92440.0,92439.0,0.05811]
[1765335538626,0.00308179,92440.0,92439.0,0.05811]
[1765335539229,0.03032179,92440.0,92439.0,0.05811]
[1765335539522,0.06004179,92440.0,92439.0,0.05811]
[1765335540619,0.07755179,92440.0,92439.0,0.05811]
[1765335541722,0.07755179,92440.0,92439.0,0.001]
[1765335541925,0.10055418,92440.0,92439.0,0.001]
[1765335546132,0.10055418,92440.0,92439.0,0.02994]
[1765335546325,0.10055418,92440.0,92439.0,0.05912]
[1765335551247,0.02608418,92440.0,92439.0,0.05912]
[1765335551937,0.08581591,92456.0,92448.0,0.05812]
[1765335551938,0.05830731,92449.0,92448.0,0.05812]
[1765335552938,0.05830731,92449.0,92448.0,0.068936]
[1765335553433,0.00110731,92449.0,92448.0,0.068936]
[1765335554336,0.0010815,92465.0,92464.0,0.05812]
[1765335554525,0.05841628,92471.0,92470.0,0.0689334]
[1765335555132,0.07472,92480.0,92479.0,0.0689323]
[1765335555328,0.02894,92480.0,92479.0,0.0689323]
[1765335555731,0.0582,92480.0,92479.0,0.0689323]
[1765335555928,0.0582,92480.0,92479.0,0.07978705]
[1765335556338,0.0010812,92490.0,92489.0,0.05812]
[1765335557440,0.14400771,92526.0,92525.0,0.02894]
[1765335557625,0.0582,92517.0,92516.0,0.02910216]
[1765335558638,0.0582,92517.0,92516.0,0.00016216]
[1765335559338,0.0592,92517.0,92516.0,0.00016216]
[1765335560438,0.03094,92517.0,92516.0,0.05928216]
[1765335560642,0.0602,92517.0,92516.0,0.05928216]
[1765335562432,0.0602,92517.0,92516.0,0.03010216]
[1765335562647,0.0602,92517.0,92516.0,0.05928216]
[1765335564244,0.0602,92517.0,92516.0,0.00116216]
[1765335564944,0.0602,92517.0,92516.0,0.02842216]
[1765335565331,0.07424,92532.0,92531.0,0.05439]
[1765335566545,0.07424,92532.0,92531.0,0.05639]
[1765335566945,0.06916391,92550.0,92531.0,0.05639]
[1765335566946,0.01764,92550.0,92539.0,0.05439]
[1765335567154,0.01764,92550.0,92539.0,0.14439]
[1765335567348,0.01764,92550.0,92539.0,0.05439]
[1765335567948,0.07644062,92540.0,92539.0,0.02726]
[1765335568442,0.05772,92532.0,92531.0,0.05939]
[1765335568648,0.05772,92532.0,92531.0,0.05439]
[1765335569345,0.06916391,92550.0,92531.0,0.05439]
[1765335569346,0.07536,92560.0,92559.0,0.05439]
[1765335569941,0.05772,92557.0,92556.0,0.0108032]
[1765335571236,0.05772,92557.0,92556.0,0.0651932]
[1765335571941,0.05772,92557.0,92556.0,0.0380632]
[1765335572131,0.05872,92557.0,92556.0,0.0380632]
[1765335572536,0.05972,92557.0,92556.0,0.0118032]
[1765335573242,0.05972,92557.0,92556.0,0.0661932]
[1765335573442,0.05972,92557.0,92556.0,0.0118032]
[1765335573653,0.0861603,92582.0,92581.0,0.02726]
[1765335573945,0.0861603,92582.0,92571.0,0.0651915]
[1765335573946,0.05772,92572.0,92571.0,0.0651915]
[1765335575044,0.07536,92575.0,92574.0,0.05439]
[1765335575252,0.05772,92572.0,92571.0,0.0108015]
[1765335575542,0.05772,92572.0,92571.0,0.004]
[1765335576135,0.05872,92572.0,92571.0,0.008]
[1765335576334,0.05872,92572.0,92562.0,0.00016207]
[1765335576335,0.0685225,92563.0,92562.0,0.00016207]
[1765335576848,0.05772,92549.0,92548.0,0.0651942]
[1765335577750,0.07536,92568.0,92548.0,0.08]
[1765335577950,0.05788114,92567.0,92566.0,0.0108022]
[1765335578145,0.05772,92558.0,92557.0,0.05455207]
[1765335578340,0.05772,92558.0,92557.0,0.06535527]
[1765335579746,0.05872,92558.0,92557.0,0.07035527]
[1765335580746,0.05972,92558.0,92557.0,0.07635527]
[1765335581251,0.05872,92558.0,92557.0,0.07335527]
[1765335581445,0.05872,92558.0,92557.0,0.07135527]
[1765335581849,0.05872,92558.0,92557.0,0.03242207]
[1765335582843,0.05872,92558.0,92557.0,0.05955207]
[1765335583046,0.05872,92558.0,92557.0,0.05855207]
[1765335584951,0.05772,92558.0,92557.0,0.00216207]
[1765335585152,0.05872,92558.0,92557.0,0.00416207]
[1765335586649,0.00016114,92567.0,92566.0,0.05439]
[1765335586839,0.05788114,92567.0,92566.0,0.05439]
[1765335587157,0.05772,92566.0,92565.0,0.0108023]
[1765335587847,0.00016114,92567.0,92557.0,0.00416207]
[1765335587848,0.01764,92560.0,92558.0,0.0108031]
[1765335588043,0.05772,92559.0,92558.0,0.0651931]
[1765335588653,0.05772,92559.0,92558.0,0.0108031]
[1765335588849,0.05772,92559.0,92558.0,0.0651931]
[1765335589043,0.05772,92559.0,92558.0,0.0681931]
[1765335589238,0.05772,92559.0,92558.0,0.0138031]
[1765335589650,0.05772,92559.0,92558.0,0.0108031]
[1765335589954,0.05772,92559.0,92558.0,0.003]
[1765335589955,0.069523,92559.0,92558.0,0.003]
[1765335590355,0.069523,92559.0,92558.0,0.005]
[1765335590856,0.069523,92559.0,92558.0,0.003]
[1765335591154,0.069523,92559.0,92558.0,0.004]
[1765335591556,0.069523,92559.0,92558.0,0.003]
[1765335591852,0.068523,92559.0,92558.0,0.001]
[1765335592160,0.069523,92559.0,92558.0,0.002]
[1765335592355,0.068423,92559.0,92558.0,0.002]
[1765335592749,0.067423,92559.0,92558.0,0.002]
[1765335593753,0.067423,92559.0,92558.0,0.05681]
[1765335594153,0.067423,92559.0,92558.0,0.02826]
[1765335594653,0.067423,92559.0,92558.0,0.02726]
[1765335594856,0.068423,92559.0,92558.0,0.02826]
[1765335596158,0.05762,92559.0,92558.0,0.02826]
[1765335596359,0.05762,92559.0,92558.0,0.05681]
[1765335596560,0.05762,92559.0,92558.0,0.05781]
[1765335597961,0.03028,92559.0,92558.0,0.05781]
[1765335598154,0.05731,92559.0,92558.0,0.05781]
[1765335601462,0.03028,92559.0,92558.0,0.05781]
[1765335601659,0.001,92559.0,92558.0,0.05781]
[1765335602054,0.03028,92559.0,92558.0,0.05781]
[1765335602752,0.05731,92559.0,92558.0,0.05781]
[1765335602963,0.068113,92559.0,92558.0,0.03094]
[1765335603153,0.068113,92559.0,92558.0,0.05949]
[1765335603349,0.03028,92559.0,92558.0,0.05949]
[1765335603768,0.001,92559.0,92558.0,0.05949]
[1765335604652,0.00108033,92565.0,92564.0,0.05749]
[1765335604859,0.00108033,92565.0,92564.0,0.5482924]
[1765335605065,0.00108033,92565.0,92564.0,0.3082924]
[1765335605269,0.01764,92582.0,92564.0,0.3082924]
[1765335605270,0.05848081,92597.0,92589.0,0.0682895]
[1765335605470,0.03036004,92590.0,92589.0,0.0682895]
[1765335605764,0.05739004,92590.0,92589.0,0.0682895]
[1765335606464,0.05839004,92590.0,92589.0,0.0682895]
[1765335606969,0.05839004,92590.0,92589.0,0.05749]
[1765335607672,0.05939004,92590.0,92589.0,0.06049]
[1765335607861,0.05939004,92590.0,92589.0,0.003]
[1765335608061,0.05939004,92590.0,92589.0,0.03051]
[1765335608263,0.05939004,92590.0,92589.0,0.05874]
[1765335608768,0.05839004,92590.0,92589.0,0.05874]
[1765335608974,0.05839004,92590.0,92589.0,0.06074]
[1765335609463,0.05839004,92590.0,92589.0,0.05974]
[1765335609667,0.05839004,92590.0,92589.0,0.03151]
[1765335610070,0.05839004,92590.0,92589.0,0.005]
[1765335610376,0.05739004,92590.0,92589.0,0.02951]
[1765335610569,0.05839004,92590.0,92589.0,0.05974]
[1765335610775,0.05839004,92590.0,92589.0,0.05774]
[1765335611276,0.05839004,92590.0,92589.0,0.05674]
[1765335611277,0.05739004,92590.0,92589.0,0.05674]
[1765335612187,0.03136004,92590.0,92589.0,0.05774]
[1765335612767,0.00208004,92590.0,92589.0,0.05774]
[1765335612970,0.00208004,92590.0,92589.0,0.05874]
[1765335613169,0.0845079,92603.0,92602.0,0.02751]
[1765335613371,0.05651,92598.0,92597.0,0.0383085]
[1765335613980,0.05651,92598.0,92597.0,0.0665385]
[1765335614772,0.05751,92598.0,92597.0,0.0675385]
[1765335615168,0.05751,92598.0,92597.0,0.05674]
[1765335617281,0.05751,92598.0,92597.0,0.02851]
[1765335618089,0.05751,92598.0,92597.0,0.05674]
[1765335618471,0.001,92598.0,92597.0,0.05674]
[1765335618672,0.05751,92598.0,92597.0,0.05674]
[1765335618877,0.05559,92598.0,92597.0,0.05674]
[1765335619076,0.02709,92598.0,92597.0,0.05674]
[1765335619486,0.05559,92598.0,92597.0,0.05674]
[1765335620386,0.07371,92610.0,92609.0,0.02751]
[1765335620983,0.07371,92610.0,92609.0,0.05574]
[1765335621185,0.05651,92607.0,92606.0,0.0665374]
[1765335622677,0.05851,92607.0,92606.0,0.0665374]
[1765335623282,0.05951,92607.0,92606.0,0.0665374]
[1765335623880,0.003,92607.0,92606.0,0.0665374]
[1765335624177,0.0107951,92627.0,92614.0,0.0674566]
[1765335625484,0.01795,92638.0,92614.0,0.0674566]
[1765335625690,0.00407974,92615.0,92614.0,0.0674566]
[1765335626187,0.06214974,92615.0,92614.0,0.0674566]
[1765335626390,0.06214974,92615.0,92614.0,0.05666]
[1765335626781,0.06414974,92615.0,92614.0,0.05666]
[1765335627694,0.05807,92623.0,92622.0,0.05666]
[1765335628284,0.05139634,92640.0,92617.0,0.01703]
[1765335628285,0.0688647,92630.0,92629.0,0.05666]
[1765335628885,0.0688647,92630.0,92629.0,0.02859]
[1765335629085,0.05807,92624.0,92623.0,0.05666]
[1765335629586,0.0107955,92623.0,92619.0,0.0107959]
[1765335629790,0.05807,92620.0,92619.0,0.0674559]
[1765335631186,0.06007,92620.0,92619.0,0.0684559]
[1765335631687,0.0708659,92620.0,92619.0,0.02959]
[1765335631880,0.0718659,92620.0,92619.0,0.001]
[1765335632191,0.0718659,92620.0,92619.0,0.05766]
[1765335632688,0.0718659,92620.0,92619.0,0.001]
[1765335636291,0.4718659,92620.0,92619.0,0.001]
[1765335640388,0.0688666,92614.0,92567.0,0.08857475]
[1765335640594,0.0688666,92614.0,92595.0,0.0674587]
[1765335640595,0.0107985,92598.0,92595.0,0.0674587]
[1765335640790,0.05807,92596.0,92595.0,0.0674587]
[1765335641104,0.05807,92596.0,92595.0,0.05666]
[1765335641605,0.05807,92593.0,92592.0,0.0107991]
[1765335641803,0.05807,92593.0,92592.0,0.0674591]
[1765335641996,0.05807,92593.0,92592.0,0.0874591]
[1765335642798,0.05807,92593.0,92592.0,0.0904591]
[1765335643191,0.05807,92600.0,92599.0,0.0674583]
[1765335644406,0.05807,92600.0,92599.0,0.0684583]
[1765335644705,0.0688682,92600.0,92599.0,0.0684583]
[1765335644904,0.05807,92600.0,92599.0,0.05966]
[1765335647712,0.0688682,92600.0,92599.0,0.05966]
[1765335648100,0.0688682,92600.0,92599.0,0.003]
[1765335648406,0.0688682,92600.0,92599.0,0.03159]
[1765335648596,0.0688682,92600.0,92599.0,0.05966]
[1765335649411,0.0688682,92600.0,92599.0,0.05866]
[1765335649910,0.0688682,92600.0,92599.0,0.002]
[1765335650300,0.0688682,92600.0,92599.0,0.003]
[1765335650908,0.0688682,92600.0,92599.0,0.002]
[1765335651204,0.0698682,92600.0,92599.0,0.001]
[1765335651401,0.0698682,92600.0,92586.0,0.00016198]
[1765335651402,0.0688697,92587.0,92586.0,0.00016198]
[1765335652413,0.0868211,92575.0,92574.0,9.775e-05]
[1765335653402,0.1041723,92565.0,92564.0,0.18492]
[1765335653610,0.09337,92565.0,92564.0,0.19492]
[1765335654415,0.09346775,92565.0,92564.0,0.19492]
[1765335655003,0.09346775,92565.0,92564.0,0.19892]
[1765335655406,0.09346775,92565.0,92564.0,0.19492]
[1765335655616,0.09346775,92565.0,92564.0,0.19892]
[1765335655817,0.18425775,92565.0,92564.0,0.20192]
[1765335656512,0.18425775,92565.0,92564.0,0.19892]
[1765335656718,0.18425775,92565.0,92564.0,0.20192]
[1765335657111,0.09446775,92565.0,92564.0,0.20192]
[1765335657419,0.00109775,92565.0,92564.0,0.20192]
[1765335661906,0.09337,92577.0,92576.0,0.195721]
[1765335662222,0.09353198,92584.0,92583.0,0.1957202]
[1765335662515,0.00016198,92584.0,92583.0,0.1957202]
[1765335664917,0.00016198,92584.0,92583.0,0.2007202]
[1765335665322,0.00116198,92584.0,92583.0,0.2007202]
[1765335665924,0.00016198,92584.0,92583.0,0.2007202]
[1765335666126,0.00116198,92584.0,92583.0,0.2047202]
[1765335672921,0.17750198,92584.0,92583.0,0.2047202]
[1765335676528,0.17750198,92584.0,92583.0,0.009]
[1765335678226,0.2144511,92575.0,92574.0,0.00016198]
[1765335678621,0.2144511,92575.0,92552.0,0.03859924]
[1765335678622,0.17634,92553.0,92552.0,0.03859924]
[1765335678933,0.17634,92553.0,92540.0,0.00108062]
[1765335678934,0.17634,92550.0,92549.0,0.08476]
[1765335679432,0.17634,92550.0,92540.0,0.00108062]
[1765335679433,0.1871451,92541.0,92540.0,0.17033062]
[1765335679629,0.1871451,92541.0,92540.0,0.00108062]
[1765335681735,0.0128051,92541.0,92540.0,0.001]
[1765335681937,0.1871462,92532.0,92531.0,0.00016207]
[1765335682237,0.1871462,92532.0,92531.0,0.16941207]
[1765335682440,0.17634,92532.0,92531.0,0.16941207]
[1765335683038,0.17734,92532.0,92531.0,0.17041207]
[1765335683341,0.17734,92532.0,92531.0,0.17141207]
[1765335685036,0.001,92532.0,92531.0,0.17141207]
[1765335686140,0.16293,92532.0,92531.0,0.17141207]
[1765335686740,0.001,92532.0,92531.0,0.17141207]
[1765335692437,0.001,92532.0,92531.0,0.18221837]
[1765335692837,0.16293,92532.0,92531.0,0.18221837]
[1765335693546,0.16293,92532.0,92531.0,0.00216207]
[1765335696042,0.16193,92514.0,92513.0,0.1737583]
[1765335696239,0.16193,92514.0,92513.0,0.2637583]
[1765335697251,0.16293,92514.0,92513.0,0.2687583]
[1765335697454,0.16393,92514.0,92513.0,0.2737583]
[1765335698152,0.16393,92514.0,92513.0,0.18295]
[1765335698848,0.16393,92514.0,92513.0,0.02]
[1765335699247,0.16393,92514.0,92513.0,0.10328]
[1765335699450,0.16393,92514.0,92513.0,0.18295]
[1765335700846,0.002,92514.0,92513.0,0.18295]
[1765335702552,0.08383,92514.0,92513.0,0.18295]
[1765335703448,0.002,92514.0,92513.0,0.18295]
[1765335704548,0.16393,92514.0,92513.0,0.18295]
[1765335705354,0.002,92514.0,92513.0,0.18295]
[1765335707041,0.08383,92514.0,92513.0,0.18295]
[1765335708248,0.16393,92514.0,92513.0,0.18295]
[1765335717073,0.00016207,92523.0,92522.0,0.1615473]
[1765335717451,0.1590667,92528.0,92527.0,0.1615467]
[1765335718964,0.1600667,92528.0,92527.0,0.1635467]
[1765335719664,0.1600667,92528.0,92527.0,0.1655467]
[1765335721169,0.1600667,92528.0,92527.0,0.08046]
[1765335721767,0.1600667,92528.0,92527.0,0.15474]
[1765335729568,0.1600667,92528.0,92527.0,0.004]
[1765335729778,0.21824876,92528.0,92527.0,0.004]
[1765335730574,0.1600667,92528.0,92527.0,0.004]
[1765335730876,0.1600667,92528.0,92527.0,0.14618]
[1765335731177,0.1600667,92528.0,92527.0,0.004]
[1765335734186,0.1600667,92528.0,92527.0,0.14618]
[1765335735286,0.1599667,92528.0,92527.0,0.14618]
[1765335735584,0.1599667,92528.0,92527.0,0.004]
[1765335737782,0.21814876,92528.0,92527.0,0.004]
[1765335737977,0.1561984,92513.0,92512.0,8.507e-05]
[1765335738482,0.1561984,92513.0,92512.0,0.06861507]
[1765335738683,0.1561984,92513.0,92512.0,0.14226507]
[1765335739184,0.1581984,92513.0,92512.0,0.15826507]
[1765335746588,0.1581984,92513.0,92512.0,0.16907357]
[1765335746787,0.14739,92513.0,92512.0,0.16907357]
[1765335747299,0.1581984,92513.0,92512.0,0.16907357]
[1765335748193,0.002,92513.0,92512.0,0.16907357]
[1765335748494,0.13595,92532.0,92531.0,0.13651]
[1765335749592,0.13695,92532.0,92531.0,0.13851]
[1765335749793,0.1477562,92532.0,92531.0,0.13851]
[1765335751584,0.06605,92532.0,92531.0,0.13851]
[1765335751790,0.13695,92532.0,92531.0,0.13851]
[1765335758600,0.06605,92532.0,92531.0,0.13851]
[1765335759292,0.13695,92532.0,92531.0,0.13851]
[1765335762800,0.17768,92532.0,92531.0,0.002]
[1765335769310,0.13695,92532.0,92531.0,0.13851]
[1765335777014,0.13695,92532.0,92531.0,0.1493163]
[1765335779509,0.13695,92532.0,92531.0,0.13851]
[1765335781316,0.13695,92532.0,92531.0,0.06886]
[1765335781505,0.13695,92532.0,92531.0,0.002]
[1765335783523,0.1326872,92523.0,92522.0,0.06351207]
[1765335783707,0.1326872,92523.0,92522.0,0.00016207]
[1765335784514,0.1326872,92523.0,92522.0,0.12743207]
[1765335784717,0.1336872,92523.0,92522.0,0.13043207]
[1765335785116,0.1336872,92523.0,92522.0,0.13343207]
[1765335786118,0.1336872,92523.0,92522.0,0.06951207]
[1765335786322,0.1336872,92523.0,92522.0,0.13102207]
[1765335800429,0.06239,92523.0,92522.0,0.13102207]
[1765335803233,0.001,92523.0,92522.0,0.13102207]
[1765335804936,0.05834256,92539.0,92536.0,0.1121]
[1765335805131,0.05834256,92540.0,92536.0,0.1121]
[1765335805326,0.05834256,92541.0,92536.0,0.1121]
[1765335805522,0.05693207,92537.0,92536.0,0.1121]
[1765335805726,0.11482207,92537.0,92536.0,0.1121]
[1765335806133,0.11682207,92537.0,92536.0,0.1131]
[1765335807528,0.11582207,92537.0,92536.0,0.1131]
[1765335807837,0.11682207,92537.0,92536.0,0.1131]
[1765335808032,0.00116207,92537.0,92536.0,0.1121]
[1765335808230,0.00216207,92537.0,92536.0,0.1131]
[1765335808736,0.00032407,92537.0,92536.0,0.1131]
[1765335808937,0.1254644,92548.0,92547.0,0.1121]
[1765335811127,0.1264644,92548.0,92547.0,0.1121]
[1765335811343,0.1274644,92548.0,92547.0,0.1131]
[1765335812832,0.002,92548.0,92547.0,0.1131]
[1765335814030,0.002,92548.0,92547.0,0.1239213]
[1765335819848,0.11666,92548.0,92547.0,0.1239213]
[1765335820745,0.11666,92548.0,92547.0,0.1131]
[1765335821241,0.11666,92548.0,92547.0,0.001]
[1765335821431,0.11666,92548.0,92547.0,0.1131]
[1765335822230,0.11666,92548.0,92547.0,0.0592]
[1765335822837,0.11666,92548.0,92547.0,0.001]
[1765335823144,0.11666,92548.0,92547.0,0.0592]
[1765335823547,0.11666,92548.0,92547.0,0.1131]
[1765335824151,0.11666,92548.0,92547.0,0.001]
[1765335825551,0.11666,92548.0,92547.0,0.1131]
[1765335827349,0.11666,92548.0,92547.0,0.001]
[1765335828748,0.11666,92548.0,92547.0,0.0592]
[1765335829337,0.11666,92548.0,92547.0,0.1131]
[1765335841952,0.11666,92548.0,92547.0,0.001]
[1765335844871,0.11666,92548.0,92547.0,0.1051]
[1765335847960,0.11666,92548.0,92547.0,0.001]
[1765335849366,0.11666,92548.0,92535.0,0.1041]
[1765335849367,0.1093157,92536.0,92535.0,0.1041]
[1765335850461,0.1103157,92536.0,92535.0,0.1061]
[1765335851257,0.1103157,92536.0,92535.0,0.1081]
[1765335852565,0.09951,92536.0,92535.0,0.1081]
[1765335853061,0.09951,92536.0,92535.0,0.13562]
[1765335855071,0.09951,92536.0,92535.0,0.1081]
[1765335856373,0.09951,92536.0,92535.0,0.004]
[1765335856555,0.1047472,92523.0,92517.0,0.03873584]
[1765335856759,0.1047472,92523.0,92515.0,0.06625584]
[1765335856970,0.1047472,92523.0,92522.0,0.04752207]
[1765335857858,0.1057472,92523.0,92522.0,0.05652207]
[1765335858055,0.1057472,92523.0,92522.0,0.10460207]
[1765335859264,0.1067472,92523.0,92522.0,0.10960207]
[1765335861170,0.09594,92523.0,92522.0,0.10960207]
[1765335861380,0.002,92523.0,92522.0,0.12040937]
[1765335864267,0.09481,92523.0,92522.0,0.10960207]
[1765335864473,0.09481,92523.0,92522.0,0.01416207]
[1765335864775,0.09481,92523.0,92522.0,0.06102207]
[1765335864975,0.09481,92523.0,92522.0,0.10855207]
[1765335865973,0.09481,92523.0,92522.0,0.01416207]
[1765335869781,0.09481,92523.0,92522.0,0.10855207]
[1765335876180,0.09536,92523.0,92522.0,0.10855207]
[1765335880071,0.002,92523.0,92522.0,0.10855207]
[1765335880686,0.05001,92523.0,92522.0,0.10855207]
[1765335882484,0.09536,92523.0,92522.0,0.10855207]
[1765335884878,0.002,92523.0,92522.0,0.10855207]
[1765335886084,0.09536,92523.0,92522.0,0.10855207]
[1765335891486,0.09536,92523.0,92522.0,0.11935937]
[1765335893686,0.002,92523.0,92522.0,0.11935937]
[1765335894788,0.08679,92523.0,92522.0,0.11935937]
[1765335895188,0.002,92523.0,92522.0,0.11935937]
[1765335900993,0.08679,92523.0,92522.0,0.11935937]
[1765335901185,0.002,92523.0,92522.0,0.11935937]
[1765335901786,0.04315,92523.0,92522.0,0.11935937]
[1765335901993,0.08679,92523.0,92522.0,0.11935937]
[1765335902188,0.08679,92523.0,92522.0,0.10855207]
[1765335907403,0.04315,92523.0,92522.0,0.10855207]
[1765335908095,0.002,92523.0,92522.0,0.10855207]
[1765335910799,0.0539572,92523.0,92522.0,0.10855207]
[1765335911004,0.0975972,92523.0,92522.0,0.10855207]
[1765335952243,0.1157272,92523.0,92522.0,0.01416207]
[1765335952833,0.0975972,92523.0,92522.0,0.05205207]
[1765335953246,0.0975972,92523.0,92522.0,0.09088207]
[1765335954938,0.04315,92523.0,92522.0,0.09088207]
[1765335956347,0.002,92523.0,92522.0,0.09088207]
[1765335957653,0.06854,92523.0,92522.0,0.09088207]
[1765335960349,0.06854,92523.0,92522.0,0.01416207]
[1765335960647,0.14603865,92523.0,92522.0,0.01416207]
[1765335960946,0.19603724,92523.0,92522.0,0.01416207]
[1765335961334,0.14603865,92523.0,92522.0,0.01416207]